bitfinex-derivatives/quotes_BTCF0:USTF0_20250724
["timestamp","ask_amount","ask_price","bid_price","bid_amount"]
[1753340756068,0.74443288,117150.0,117140.0,0.41420842]
[1753340756272,0.40671248,117150.0,117140.0,0.41420842]
[1753340756473,0.74443288,117150.0,117140.0,0.41420842]
[1753340756870,0.40671248,117150.0,117140.0,0.41420842]
[1753340757070,0.74443288,117150.0,117140.0,0.41420842]
[1753340757660,0.40671248,117150.0,117140.0,0.41420842]
[1753340757864,0.74443288,117150.0,117140.0,0.41420842]
[1753340758072,0.40671248,117150.0,117140.0,0.41420842]
[1753340758669,0.40671248,117150.0,117140.0,0.58483342]
[1753340758871,0.40671248,117150.0,117140.0,0.61046342]
[1753340759065,0.40671248,117150.0,117140.0,0.45781842]
[1753340759773,0.62748861,117150.0,117140.0,1.17156842]
[1753340760373,0.62748861,117150.0,117140.0,0.37920842]
[1753340760577,0.33902649,117150.0,117140.0,1.17009842]
[1753340760774,0.62748861,117150.0,117140.0,0.41313842]
[1753340760975,0.33902649,117150.0,117140.0,1.16853842]
[1753340761277,0.62748861,117150.0,117140.0,0.43876842]
[1753340761472,0.40592672,117150.0,117140.0,1.38181342]
[1753340761677,0.40592672,117150.0,117140.0,1.21118842]
[1753340761872,0.40592672,117150.0,117140.0,1.38181332]
[1753340762074,0.69438884,117150.0,117140.0,1.21118842]
[1753340762278,0.40592672,117150.0,117140.0,1.38181332]
[1753340762477,0.40592672,117150.0,117140.0,1.39932847]
[1753340762682,0.09358622,117150.0,117140.0,1.69488059]
[1753340762882,0.38716551,117170.0,117160.0,0.1994357]
[1753340763081,0.341488,117170.0,117160.0,1.6989057]
[1753340763680,0.315408,117170.0,117160.0,1.6989057]
[1753340763881,0.288278,117170.0,117160.0,1.6989057]
[1753340764277,0.288278,117170.0,117160.0,1.52831]
[1753340764478,0.288278,117170.0,117160.0,2.00495297]
[1753340764479,0.32461073,117170.0,117160.0,2.00495297]
[1753340764880,0.32961073,117170.0,117160.0,2.00595297]
[1753340765084,0.28696283,117170.0,117160.0,2.00595297]
[1753340765280,0.28696283,117170.0,117160.0,2.05533989]
[1753340765482,0.37256283,117170.0,117160.0,1.71473085]
[1753340765672,0.42726283,117170.0,117160.0,1.70764085]
[1753340765878,0.42226283,117170.0,117160.0,1.71373085]
[1753340766078,0.36856283,117170.0,117160.0,1.71673085]
[1753340766279,0.31535283,117170.0,117160.0,1.71673085]
[1753340766778,0.24431653,117170.0,117160.0,1.71673085]
[1753340766980,0.32991653,117170.0,117160.0,0.96653085]
[1753340767175,0.32991653,117170.0,117160.0,1.71593085]
[1753340767681,0.38461653,117170.0,117160.0,0.95944085]
[1753340767876,0.38361653,117170.0,117160.0,1.53464515]
[1753340768082,0.38461653,117170.0,117160.0,0.04742515]
[1753340768278,0.38461653,117170.0,117160.0,0.79474515]
[1753340769085,0.38361653,117170.0,117160.0,0.8088975]
[1753340769280,0.38461653,117170.0,117160.0,0.8118975]
[1753340769475,0.38461653,117170.0,117160.0,0.04942515]
[1753340769680,0.38461653,117170.0,117160.0,0.79642515]
[1753340769885,0.38461653,117170.0,117160.0,0.79606515]
[1753340770187,0.38461653,117170.0,117160.0,0.79550515]
[1753340770384,0.38461653,117170.0,117160.0,1.15630515]
[1753340770684,0.72246557,117170.0,117160.0,0.76678515]
[1753340770987,0.38461653,117170.0,117160.0,0.41022515]
[1753340771189,0.38461653,117170.0,117160.0,1.15602515]
[1753340771384,0.38461653,117170.0,117160.0,1.17384515]
[1753340771579,0.38361653,117170.0,117160.0,1.17084515]
[1753340771783,0.38461653,117170.0,117160.0,1.17893515]
[1753340771979,0.38061653,117170.0,117160.0,1.36676521]
[1753340772185,0.38061653,117170.0,117160.0,1.19516951]
[1753340772489,0.38261653,117170.0,117160.0,1.35153085]
[1753340773189,0.24231653,117170.0,117160.0,1.68937989]
[1753340773483,0.27470653,117170.0,117160.0,1.34913085]
[1753340773691,0.32791653,117170.0,117160.0,0.60573085]
[1753340773890,0.32791653,117170.0,117160.0,1.34909085]
[1753340774186,0.30183653,117170.0,117160.0,1.17849515]
[1753340774382,0.32791653,117170.0,117160.0,1.17857515]
[1753340774779,0.30183653,117170.0,117160.0,1.17857515]
[1753340774986,0.27470653,117170.0,117160.0,1.34917085]
[1753340775185,0.2059838,117170.0,117160.0,1.34917085]
[1753340775382,0.1735938,117170.0,117160.0,1.68701989]
[1753340775688,0.1735938,117170.0,117160.0,1.70259353]
[1753340776088,0.1725938,117170.0,117160.0,1.87128953]
[1753340776485,0.2059838,117170.0,117160.0,1.51770685]
[1753340776690,0.2331138,117170.0,117160.0,1.51718685]
[1753340776985,0.2591938,117170.0,117160.0,1.11327589]
[1753340777187,0.2059838,117170.0,117160.0,1.91591718]
[1753340777489,0.1735812,117170.0,117160.0,1.85467589]
[1753340777690,0.1735812,117170.0,117160.0,1.91591718]
[1753340777986,0.003,117170.0,117160.0,1.85467589]
[1753340778485,0.003,117170.0,117160.0,1.91591718]
[1753340778792,0.3143116,117190.0,117180.0,0.1994066]
[1753340779091,0.3414416,117190.0,117180.0,1.3253966]
[1753340779288,0.256163,117190.0,117180.0,1.3253966]
[1753340779499,0.2300721,117190.0,117180.0,1.70380018]
[1753340779689,0.2561521,117190.0,117180.0,1.70380018]
[1753340779888,0.2561521,117190.0,117180.0,1.70472018]
[1753340780190,0.2641521,117190.0,117180.0,2.04456922]
[1753340780488,0.2641521,117190.0,117180.0,1.70672018]
[1753340781082,0.2611521,117190.0,117180.0,2.04356922]
[1753340781384,0.2621521,117190.0,117180.0,2.04356922]
[1753340781587,0.0876,117190.0,117180.0,2.04456922]
[1753340781783,0.2320721,117190.0,117180.0,2.04456922]
[1753340782194,0.002,117190.0,117180.0,1.70672018]
[1753340782590,0.002,117190.0,117180.0,2.04456922]
[1753340782895,0.002,117190.0,117180.0,2.21524122]
[1753340783101,0.002,117190.0,117180.0,1.87739218]
[1753340783288,0.2049421,117190.0,117180.0,2.21524122]
[1753340783593,0.03439,117190.0,117180.0,2.21524122]
[1753340784194,0.03439,117190.0,117180.0,1.87739218]
[1753340784491,0.002,117190.0,117180.0,2.21524122]
[1753340784697,0.321056,117220.0,117210.0,0.3004251]
[1753340784994,0.2784271,117220.0,117210.0,1.4096351]
[1753340785196,0.2784271,117220.0,117210.0,1.69769884]
[1753340785197,0.3108171,117220.0,117210.0,1.69769884]
[1753340785800,0.05321,117230.0,117220.0,0.1705084]
[1753340786001,0.03239,117230.0,117220.0,0.88647109]
[1753340786195,0.03239,117230.0,117220.0,0.59840735]
[1753340786395,0.2726247,117240.0,117230.0,0.2222439]
[1753340786696,0.2028731,117240.0,117230.0,0.5830439]
[1753340786894,0.2028731,117240.0,117230.0,1.61130764]
[1753340787297,0.2028731,117240.0,117230.0,1.66067967]
[1753340787604,0.2028731,117240.0,117230.0,1.3232439]
[1753340787998,0.2300031,117240.0,117230.0,1.3232439]
[1753340788194,0.2560831,117240.0,117230.0,1.3232439]
[1753340788696,0.2560831,117240.0,117230.0,1.3252439]
[1753340788901,0.2570831,117240.0,117230.0,1.66267967]
[1753340789403,0.2570831,117240.0,117230.0,1.3252439]
[1753340790504,0.2580831,117240.0,117230.0,1.3252439]
[1753340791099,0.65130887,117240.0,117230.0,0.03094]
[1753340791307,0.65130887,117240.0,117230.0,0.002]
[1753340791499,0.65130887,117240.0,117230.0,1.09884]
[1753340791901,0.3138731,117240.0,117230.0,1.09884]
[1753340792101,0.3138731,117240.0,117230.0,0.38054]
[1753340792399,0.3138731,117240.0,117230.0,0.5624839]
[1753340792605,0.3138731,117240.0,117230.0,1.3133739]
[1753340792806,0.2048731,117240.0,117230.0,1.65796967]
[1753340793499,0.1724794,117240.0,117230.0,1.65796967]
[1753340794296,0.002,117240.0,117230.0,1.65796967]
[1753340794905,0.002,117240.0,117230.0,1.3205339]
[1753340795110,0.1724794,117240.0,117230.0,1.65796967]
[1753340795711,0.1724794,117240.0,117230.0,1.82856967]
[1753340795901,0.1724794,117240.0,117230.0,1.4911339]
[1753340796107,0.1724794,117240.0,117230.0,1.82856967]
[1753340796704,0.1724794,117240.0,117230.0,1.65796967]
[1753340796910,0.2295094,117240.0,117230.0,1.65796967]
[1753340797106,0.3132694,117240.0,117230.0,0.76099]
[1753340797302,0.3132694,117240.0,117230.0,1.12143]
[1753340797805,0.3132694,117240.0,117230.0,1.2919239]
[1753340798201,0.2549494,117240.0,117230.0,0.5624839]
[1753340798405,0.2549494,117240.0,117230.0,1.65236967]
[1753340798601,0.03371,117240.0,117230.0,1.65236967]
[1753340798803,0.03321,117240.0,117230.0,1.65036967]
[1753340799010,0.1724794,117240.0,117230.0,1.65136967]
[1753340799210,0.001,117240.0,117230.0,1.65136967]
[1753340799510,0.1714794,117240.0,117230.0,1.65236967]
[1753340799710,0.001,117240.0,117230.0,1.65236967]
[1753340800107,0.1714794,117240.0,117230.0,1.65136967]
[1753340800313,0.001,117240.0,117230.0,1.65236967]
[1753340800512,0.2960604,117250.0,117240.0,0.1819294]
[1753340800709,0.2960604,117250.0,117240.0,0.92095517]
[1753340800908,0.29596814,117250.0,117240.0,0.92095517]
[1753340801312,0.29596814,117250.0,117240.0,0.5835194]
[1753340802011,0.29596814,117250.0,117240.0,0.92095517]
[1753340802214,0.29696814,117250.0,117240.0,0.5845194]
[1753340802613,0.29796814,117250.0,117240.0,0.5845194]
[1753340803814,0.29796814,117250.0,117240.0,0.92195517]
[1753340804407,0.29796814,117250.0,117240.0,0.5845194]
[1753340804609,0.35628814,117250.0,117240.0,1.13044]
[1753340805210,0.35628814,117250.0,117240.0,1.3009194]
[1753340805709,0.35628814,117250.0,117240.0,1.13044]
[1753340805912,0.35628814,117250.0,117240.0,1.11135]
[1753340806816,0.35628814,117250.0,117240.0,0.3618]
[1753340807013,0.35628814,117250.0,117240.0,0.72136]
[1753340807419,0.35628814,117250.0,117240.0,1.08216]
[1753340807615,0.35628814,117250.0,117240.0,0.72136]
[1753340807817,0.35628814,117250.0,117240.0,1.08216]
[1753340808015,0.35628814,117250.0,117240.0,1.2526394]
[1753340808609,0.35628814,117250.0,117240.0,0.001]
[1753340808815,0.35628814,117250.0,117240.0,1.08164]
[1753340809014,0.35628814,117250.0,117240.0,1.2521194]
[1753340809214,0.64426107,117250.0,117240.0,1.07976]
[1753340809616,0.35628814,117250.0,117240.0,1.2502394]
[1753340809816,0.35628814,117250.0,117240.0,1.10863]
[1753340810019,0.35628814,117250.0,117240.0,1.2791094]
[1753340810417,0.35628814,117250.0,117240.0,1.56708233]
[1753340810619,0.35628814,117250.0,117240.0,1.2949994]
[1753340811416,0.35628814,117250.0,117240.0,0.5614694]
[1753340811614,0.35628814,117250.0,117240.0,1.2773494]
[1753340812213,0.37490645,117250.0,117240.0,1.2773494]
[1753340812417,0.37490645,117250.0,117240.0,1.10687]
[1753340812612,0.37490645,117250.0,117240.0,1.2754694]
[1753340813424,0.35628814,117250.0,117240.0,1.2913594]
[1753340813820,0.6628944,117250.0,117240.0,1.07516]
[1753340814017,0.37492147,117250.0,117240.0,1.2456394]
[1753340815619,0.37492147,117250.0,117240.0,1.2615294]
[1753340815820,0.37492147,117250.0,117240.0,1.2907194]
[1753340816422,0.37492147,117250.0,117240.0,1.2725494]
[1753340817025,0.37492147,117250.0,117240.0,0.9111094]
[1753340817224,0.37492147,117250.0,117240.0,1.2719094]
[1753340818717,0.37492147,117250.0,117240.0,1.57577233]
[1753340818920,0.37492147,117250.0,117240.0,1.58293233]
[1753340819320,0.29796814,117250.0,117240.0,1.2949594]
[1753340819722,0.29796814,117250.0,117240.0,1.58293233]
[1753340819921,0.29796814,117250.0,117240.0,1.2949594]
[1753340820122,0.29796814,117250.0,117240.0,1.58293233]
[1753340820331,0.29696814,117250.0,117240.0,1.58293233]
[1753340820530,0.29696814,117250.0,117240.0,1.58393233]
[1753340820733,0.001,117250.0,117240.0,1.58393233]
[1753340820922,0.1714649,117250.0,117240.0,1.58393233]
[1753340821130,0.001,117250.0,117240.0,1.58393233]
[1753340821623,0.2300849,117250.0,117240.0,0.87349233]
[1753340821926,0.3101549,117250.0,117240.0,1.2850394]
[1753340822119,0.3101549,117250.0,117240.0,1.2691494]
[1753340822318,0.3091549,117250.0,117240.0,1.57104233]
[1753340822525,0.3101549,117250.0,117240.0,1.57204233]
[1753340822828,0.3101549,117250.0,117240.0,0.5773894]
[1753340823133,0.3101549,117250.0,117240.0,1.57152233]
[1753340823632,0.3101549,117250.0,117240.0,1.2897394]
[1753340823825,0.3101549,117250.0,117240.0,1.57771233]
[1753340824022,0.3101549,117250.0,117240.0,1.2897394]
[1753340824325,0.3101549,117250.0,117240.0,1.57771233]
[1753340824922,0.3101549,117250.0,117240.0,1.2897394]
[1753340825122,0.3101549,117250.0,117240.0,1.57152233]
[1753340825318,0.3101549,117250.0,117240.0,0.5773894]
[1753340825534,0.3101549,117250.0,117240.0,1.2820694]
[1753340826029,0.61678534,117250.0,117240.0,1.06712]
[1753340826332,0.61678534,117250.0,117240.0,0.002]
[1753340826531,0.97758534,117250.0,117240.0,0.001]
[1753340826732,1.39816934,117250.0,117240.0,0.002]
[1753340827034,1.39816934,117250.0,117230.0,0.01736637]
[1753340827035,0.3091694,117240.0,117230.0,0.01736637]
[1753340827224,0.97659984,117240.0,117230.0,0.01736637]
[1753340827626,0.97559984,117240.0,117230.0,0.01736637]
[1753340827821,0.68762691,117240.0,117230.0,0.01736637]
[1753340828025,0.97559984,117240.0,117230.0,0.01736637]
[1753340828423,0.3091985,117220.0,117210.0,0.91872292]
[1753340829523,0.3091985,117220.0,117210.0,1.20669585]
[1753340829734,0.3111985,117220.0,117210.0,0.91972292]
[1753340830429,0.3111985,117220.0,117210.0,1.20769585]
[1753340830631,0.3111985,117220.0,117210.0,1.56849585]
[1753340831333,0.03713,117220.0,117210.0,1.58812585]
[1753340831521,0.03713,117220.0,117210.0,1.30015292]
[1753340831721,0.2076385,117220.0,117210.0,1.58812585]
[1753340832127,0.2331285,117220.0,117210.0,1.58812585]
[1753340832427,0.2584485,117220.0,117210.0,1.58812585]
[1753340833232,0.2584485,117220.0,117210.0,1.30015292]
[1753340833638,0.2584485,117220.0,117210.0,1.58812585]
[1753340834026,0.08794,117220.0,117210.0,1.58812585]
[1753340834226,0.2584485,117220.0,117210.0,1.58812585]
[1753340834534,0.004,117220.0,117210.0,1.58812585]
[1753340834730,0.170494,117230.0,117220.0,0.1978685]
[1753340834931,0.170494,117230.0,117220.0,0.99162663]
[1753340835436,0.170494,117230.0,117220.0,0.94900023]
[1753340835633,0.203624,117230.0,117220.0,0.94900023]
[1753340835835,0.229114,117230.0,117220.0,0.94900023]
[1753340836038,0.257434,117230.0,117220.0,0.6620273]
[1753340836233,0.257434,117230.0,117220.0,0.90737543]
[1753340836426,0.259434,117230.0,117220.0,0.90837543]
[1753340836634,0.259434,117230.0,117220.0,1.60405543]
[1753340836832,0.259434,117230.0,117220.0,0.90837543]
[1753340837034,0.259434,117230.0,117220.0,1.60405543]
[1753340837234,0.259434,117230.0,117220.0,0.90837543]
[1753340837635,0.08894,117230.0,117220.0,1.60353543]
[1753340839245,0.06362,117230.0,117220.0,1.60353543]
[1753340839936,0.03813,117230.0,117220.0,1.60353543]
[1753340840132,0.005,117230.0,117220.0,1.60353543]
[1753340840344,0.07724208,117250.0,117240.0,0.1957594]
[1753340840640,0.24770698,117250.0,117240.0,1.90476233]
[1753340841035,0.3104245,117270.0,117260.0,0.1898103]
[1753340841236,0.3357445,117270.0,117260.0,1.54317323]
[1753340841435,0.3357445,117270.0,117260.0,1.2552003]
[1753340841734,0.3943645,117270.0,117260.0,1.2552003]
[1753340846345,0.3537528,117270.0,117260.0,1.27345568]
[1753340846529,0.2990028,117270.0,117260.0,1.56142861]
[1753340846735,0.2969309,117300.0,117280.0,0.01936]
[1753340846936,0.08394,117300.0,117290.0,1.53908963]
[1753340847132,0.05862,117300.0,117290.0,1.53908963]
[1753340847332,1.7543181,117310.0,117300.0,0.2018622]
[1753340847642,1.7543181,117310.0,117300.0,0.85063513]
[1753340847643,1.55862,117310.0,117300.0,0.85063513]
[1753340847840,0.2212657,117330.0,117310.0,0.03147]
[1753340848038,0.2543957,117330.0,117320.0,1.90084613]
[1753340848339,1.7290686,117330.0,117320.0,1.90084613]
[1753340848539,0.0001,117330.0,117320.0,1.90084613]
[1753340849041,0.2034735,117340.0,117330.0,0.1895486]
[1753340849246,0.2034735,117340.0,117330.0,0.85033153]
[1753340849247,1.7034735,117340.0,117330.0,0.85033153]
[1753340849639,0.1703435,117340.0,117330.0,0.85033153]
[1753340849840,0.37559169,117350.0,117340.0,0.1796341]
[1753340850143,0.37559169,117350.0,117340.0,1.53859703]
[1753340850144,1.87559169,117350.0,117340.0,1.53859703]
[1753340850338,1.79042489,117350.0,117340.0,1.53859703]
[1753340850544,1.7289537,117350.0,117340.0,1.53859703]
[1753340850741,1.6703337,117350.0,117340.0,1.2506241]
[1753340851146,1.7279537,117350.0,117340.0,1.2506241]
[1753340851644,1.7037096,117350.0,117340.0,1.58746913]
[1753340851848,1.6703196,117350.0,117340.0,1.58746913]
[1753340852144,1.5,117350.0,117340.0,1.58746913]
[1753340852342,0.2462829,117360.0,117350.0,0.1703196]
[1753340852545,0.1703159,117360.0,117350.0,0.89524463]
[1753340852738,0.1703159,117360.0,117350.0,0.5583996]
[1753340852936,0.3396833,117380.0,117370.0,0.1921406]
[1753340853139,0.3822551,117380.0,117370.0,1.58201563]
[1753340853344,0.3822551,117380.0,117370.0,1.6059706]
[1753340853345,0.3396833,117380.0,117370.0,1.6059706]
[1753340854647,0.3526833,117380.0,117370.0,1.2471706]
[1753340855445,0.2166661,117380.0,117370.0,1.58401563]
[1753340855643,0.1832761,117380.0,117370.0,1.58401563]
[1753340855840,0.013,117380.0,117370.0,1.58401563]
[1753340856645,0.008,117380.0,117370.0,1.58301563]
[1753340856842,0.1782761,117380.0,117370.0,1.58301563]
[1753340857346,0.008,117380.0,117370.0,1.58301563]
[1753340857645,0.1782761,117380.0,117370.0,1.58301563]
[1753340858145,0.008,117380.0,117370.0,1.58301563]
[1753340859145,0.008,117380.0,117370.0,1.94381563]
[1753340859437,0.008,117380.0,117370.0,1.6069706]
[1753340859438,0.00294,117380.0,117370.0,1.6069706]
[1753340859641,0.00294,117380.0,117370.0,2.11420763]
[1753340860244,0.00294,117380.0,117370.0,1.7773626]
[1753340860446,0.00294,117380.0,117370.0,2.11420763]
[1753340860646,0.002,117380.0,117370.0,1.94481563]
[1753340861240,0.08425,117400.0,117390.0,0.1791816]
[1753340861442,0.05762,117400.0,117390.0,1.92030663]
[1753340861640,0.1702448,117410.0,117400.0,0.1791671]
[1753340861641,0.05762,117410.0,117400.0,0.1791671]
[1753340861946,0.05762,117410.0,117400.0,0.87681213]
[1753340862148,0.05762,117430.0,117420.0,0.1757081]
[1753340862451,0.2278236,117430.0,117420.0,1.91898313]
[1753340862751,0.2544536,117430.0,117420.0,1.91898313]
[1753340863047,0.08425,117430.0,117420.0,1.91898313]
[1753340863246,0.05762,117430.0,117420.0,1.93314052]
[1753340863447,1.8395493,117440.0,117430.0,0.1791236]
[1753340863641,1.8395493,117440.0,117430.0,0.5399236]
[1753340863947,1.5,117440.0,117430.0,0.87676863]
[1753340864459,1.55762,117440.0,117430.0,0.87676863]
[1753340864946,1.6701891,117440.0,117430.0,0.5399236]
[1753340865135,1.55762,117440.0,117430.0,0.87676863]
[1753340865536,1.7278091,117440.0,117430.0,0.87676863]
[1753340865943,1.55762,117440.0,117430.0,0.87676863]
[1753340866545,1.55762,117440.0,117430.0,0.87776863]
[1753340868153,1.7278091,117440.0,117430.0,0.87776863]
[1753340868349,1.7544391,117440.0,117430.0,0.87776863]
[1753340868549,1.7544391,117440.0,117430.0,0.5409236]
[1753340868851,1.5,117440.0,117430.0,0.87776863]
[1753340869254,0.616036,117470.0,117460.0,0.1756501]
[1753340869255,0.3084556,117470.0,117460.0,0.1756501]
[1753340869449,0.3084556,117470.0,117460.0,1.54885513]
[1753340869646,0.3084556,117470.0,117460.0,0.8512101]
[1753340869848,0.3084556,117470.0,117460.0,1.2120102]
[1753340870549,0.3084847,117450.0,117440.0,0.86184922]
[1753340870752,0.3084847,117450.0,117440.0,1.22264922]
[1753340871156,0.3084847,117450.0,117440.0,0.54832922]
[1753340871357,0.3084847,117450.0,117440.0,1.22741922]
[1753340872244,0.05862,117450.0,117440.0,1.56769425]
[1753340872550,0.001,117450.0,117440.0,1.56769425]
[1753340873856,0.1711747,117450.0,117440.0,1.56769425]
[1753340874056,0.3094847,117450.0,117440.0,1.05643162]
[1753340874353,0.3094847,117450.0,117440.0,1.56346575]
[1753340874750,0.3094847,117450.0,117440.0,1.39327665]
[1753340874951,0.3094847,117450.0,117440.0,0.69563162]
[1753340875156,0.3094847,117450.0,117440.0,1.39327665]
[1753340875454,0.3094847,117450.0,117440.0,1.56346575]
[1753340876256,0.13931,117450.0,117440.0,1.56346575]
[1753340876451,0.13931,117450.0,117440.0,1.56689575]
[1753340876452,0.05862,117450.0,117440.0,1.56689575]
[1753340876754,0.001,117450.0,117440.0,1.56689575]
[1753340877458,0.001,117450.0,117440.0,1.23005072]
[1753340877759,0.001,117450.0,117440.0,1.56689575]
[1753340880653,0.001,117450.0,117440.0,0.89409575]
[1753340880859,0.001,117450.0,117440.0,1.56493575]
[1753340881459,1.58296,117470.0,117460.0,0.51113523]
[1753340881655,1.7531057,117470.0,117460.0,1.2043402]
[1753340881956,1.7531057,117470.0,117460.0,1.17780523]
[1753340882158,1.7531057,117470.0,117460.0,0.8409602]
[1753340882861,1.7531057,117470.0,117460.0,0.6708]
[1753340883060,2.1139057,117470.0,117460.0,0.6708]
[1753340883662,2.1159057,117470.0,117460.0,0.6708]
[1753340884063,0.3055847,117450.0,117440.0,0.55087072]
[1753340884260,0.3055847,117450.0,117440.0,1.22163072]
[1753340884458,0.3055847,117450.0,117440.0,0.68810162]
[1753340884459,0.6663847,117450.0,117440.0,0.68810162]
[1753340884661,0.6663847,117450.0,117440.0,0.85829072]
[1753340885262,0.6663847,117450.0,117440.0,1.19513575]
[1753340885464,0.3055847,117450.0,117440.0,1.55593575]
[1753340885866,0.08039,117450.0,117440.0,1.55593575]
[1753340886173,1.55633,117450.0,117440.0,1.55752575]
[1753340886560,1.7505647,117450.0,117440.0,1.55752575]
[1753340886765,1.7505647,117450.0,117440.0,1.19513575]
[1753340886964,2.1113647,117450.0,117440.0,0.85829072]
[1753340887360,0.05633,117450.0,117440.0,1.56006575]
[1753340887766,0.02412,117450.0,117440.0,1.55752575]
[1753340888065,0.05633,117450.0,117440.0,1.55852575]
[1753340888764,0.08039,117450.0,117440.0,1.55693575]
[1753340889566,0.08039,117450.0,117440.0,1.55832575]
[1753340889870,0.05633,117450.0,117440.0,1.55832575]
[1753340890070,0.05633,117450.0,117440.0,1.91912575]
[1753340890858,0.08039,117460.0,117450.0,0.1701746]
[1753340891059,0.08039,117460.0,117450.0,0.5309746]
[1753340891370,0.2505502,117460.0,117450.0,0.1701746]
[1753340892062,0.3055702,117460.0,117450.0,0.5309746]
[1753340892262,0.3055702,117460.0,117450.0,0.57679664]
[1753340892663,0.05933,117470.0,117460.0,0.1701602]
[1753340892863,0.003,117470.0,117460.0,1.58565727]
[1753340893069,0.09944616,117480.0,117470.0,0.1701457]
[1753340893269,0.09944616,117480.0,117470.0,0.91502802]
[1753340893770,0.07538616,117480.0,117470.0,0.91502802]
[1753340894266,0.07538616,117480.0,117470.0,0.91802802]
[1753340895268,0.01905616,117480.0,117470.0,0.91802802]
[1753340895973,6e-08,117480.0,117470.0,0.87218073]
[1753340896271,0.05633,117500.0,117490.0,0.1715067]
[1753340896570,0.05633,117500.0,117490.0,1.95929695]
[1753340896772,0.08039,117520.0,117510.0,0.1700877]
[1753340896972,0.08039,117520.0,117510.0,1.53825273]
[1753340897674,0.2504633,117520.0,117510.0,1.53825273]
[1753340898173,0.08039,117520.0,117510.0,1.53825273]
[1753340898771,0.08039,117520.0,117510.0,1.53964273]
[1753340899078,0.06033,117520.0,117510.0,1.58544063]
[1753340899278,0.06033,117520.0,117510.0,1.90044273]
[1753340899479,0.06033,117520.0,117510.0,1.94624063]
[1753340899767,0.05733,117520.0,117510.0,1.94624063]
[1753340900169,0.05733,117520.0,117510.0,1.90044273]
[1753340900363,0.001,117520.0,117510.0,1.90044273]
[1753340901068,0.001,117520.0,117510.0,1.94624063]
[1753340901370,0.001,117520.0,117510.0,1.90044273]
[1753340902671,0.07383074,117550.0,117540.0,0.1714343]
[1753340902973,0.24386064,117550.0,117540.0,1.2025143]
[1753340903167,0.24386064,117550.0,117540.0,1.53935933]
[1753340903369,0.26792064,117550.0,117540.0,1.53935933]
[1753340903871,0.27092064,117550.0,117540.0,1.53935933]
[1753340904068,0.003,117550.0,117540.0,1.53935933]
[1753340905967,0.006,117550.0,117540.0,1.2025143]
[1753340906169,0.006,117550.0,117540.0,1.53935933]
[1753340906365,0.00461,117550.0,117540.0,1.53935933]
[1753340906770,0.00461,117550.0,117540.0,1.55248068]
[1753340906771,0.003,117550.0,117540.0,1.55248068]
[1753340906970,0.001,117550.0,117540.0,1.55248068]
[1753340907173,0.002,117550.0,117540.0,1.21563565]
[1753340907374,0.002,117550.0,117540.0,1.55248068]
[1753340908476,0.488297,117580.0,117570.0,0.1700009]
[1753340908477,0.05633,117580.0,117570.0,0.1700009]
[1753340908779,0.05633,117580.0,117570.0,1.53776593]
[1753340908978,0.05633,117580.0,117570.0,1.2009209]
[1753340909178,0.2263165,117580.0,117570.0,1.53776593]
[1753340909377,0.2503765,117580.0,117570.0,0.8401209]
[1753340909577,0.2503765,117580.0,117570.0,1.17696593]
[1753340909771,0.2583765,117580.0,117570.0,1.17696593]
[1753340909974,0.2928926,117570.0,117560.0,0.1700154]
[1753340910181,0.3778989,117570.0,117560.0,0.67]
[1753340910572,0.3778989,117570.0,117560.0,0.8400154]
[1753340910772,0.3778989,117570.0,117560.0,0.67]
[1753340910973,0.7386989,117570.0,117560.0,0.67]
[1753340911478,0.7386989,117570.0,117560.0,0.8400154]
[1753340911879,0.7386989,117570.0,117560.0,0.67]
[1753340912268,1.07554393,117570.0,117560.0,0.67]
[1753340912472,1.07654393,117570.0,117560.0,0.67]
[1753340913078,0.2503454,117560.0,117550.0,0.68917228]
[1753340913279,0.6111454,117560.0,117550.0,0.85920218]
[1753340913674,0.6111454,117560.0,117550.0,0.01925228]
[1753340913878,0.6111454,117560.0,117550.0,0.85916218]
[1753340914077,0.2503454,117560.0,117550.0,0.85916218]
[1753340914278,0.08033,117560.0,117550.0,1.55680721]
[1753340914476,0.05656,117560.0,117550.0,1.55680721]
[1753340914674,0.5318018,117570.0,117560.0,0.1700154]
[1753340914875,0.6121318,117570.0,117560.0,0.50686043]
[1753340915281,0.6121318,117570.0,117560.0,0.1700154]
[1753340915681,0.6121318,117570.0,117560.0,0.50686043]
[1753340916482,0.08133,117570.0,117560.0,0.50686043]
[1753340916784,0.2513309,117570.0,117560.0,0.50686043]
[1753340917086,0.3055709,117570.0,117560.0,0.50686043]
[1753340917675,0.3075709,117570.0,117560.0,0.50686043]
[1753340918087,0.3085709,117570.0,117560.0,0.50686043]
[1753340918786,0.13857,117570.0,117560.0,0.50686043]
[1753340919387,0.3085709,117570.0,117560.0,0.1700154]
[1753340919588,0.3085709,117570.0,117560.0,0.50686043]
[1753340920277,0.05956,117570.0,117560.0,0.86752092]
[1753340920478,1.503,117570.0,117560.0,0.86752092]
[1753340920781,0.003,117570.0,117560.0,0.86752092]
[1753340921182,1.503,117570.0,117560.0,0.86752092]
[1753340922486,0.003,117570.0,117560.0,1.03764092]
[1753340922693,0.08033,117590.0,117580.0,0.1699864]
[1753340922884,0.08033,117590.0,117580.0,1.53735143]
[1753340923081,1.58033,117590.0,117580.0,1.53735143]
[1753340923291,1.55656,117590.0,117580.0,1.53735143]
[1753340923490,1.55656,117590.0,117580.0,1.89815143]
[1753340924088,1.726532,117590.0,117580.0,1.5613064]
[1753340924290,1.55856,117590.0,117580.0,1.5613064]
[1753340924491,1.58233,117590.0,117580.0,1.89815143]
[1753340924691,1.55856,117590.0,117580.0,1.5613064]
[1753340924890,1.55856,117590.0,117580.0,1.89815143]
[1753340925295,1.55856,117590.0,117580.0,1.93027974]
[1753340926197,1.55956,117590.0,117580.0,1.93027974]
[1753340926593,1.58333,117590.0,117580.0,1.93027974]
[1753340927196,1.753302,117590.0,117580.0,1.93027974]
[1753340927396,1.58333,117590.0,117580.0,1.93027974]
[1753340927596,1.753302,117590.0,117580.0,1.59343471]
[1753340927798,1.58333,117590.0,117580.0,1.93027974]
[1753340928300,1.753302,117590.0,117580.0,1.93027974]
[1753340928496,1.58333,117590.0,117580.0,1.93027974]
[1753340929097,1.753302,117590.0,117580.0,1.93027974]
[1753340929294,1.753302,117590.0,117580.0,1.91703079]
[1753340929493,1.58333,117590.0,117580.0,1.91703079]
[1753340929695,1.55956,117590.0,117580.0,1.91703079]
[1753340930101,1.58333,117590.0,117580.0,1.91703079]
[1753340930298,1.55956,117590.0,117580.0,1.91703079]
[1753340930596,1.55956,117590.0,117580.0,1.96282869]
[1753340930802,1.503,117590.0,117580.0,1.96282869]
[1753340931805,1.503,117590.0,117580.0,1.97581632]
[1753340934193,1.503,117590.0,117580.0,1.63897129]